Cogmind - Beta 14 @@@ ROGUE MODE // 2024.11.14 @ 14:57:27 Player: ThatGuyMcfly Result: Destroyed by OJ-4VB(R) with Subdweller Machine Gun Performance ------------- Evolutions (0) 0 Regions Visited (3) 600 Robots Destroyed (24) 120 Value Destroyed (446) 446 Prototype IDs (0) 0 Alien Tech Used (0) 0 Bonus (0) 0 TOTAL SCORE: 1166 Bonus ------- None Cogmind --------- Core Integrity 0/250 Matter 300/300 Energy 68/100 System Corruption 1% Temperature Cool (0) Movement Core (750) Ox14 Location -10/Subcaves Parts ------- > --- POWER (1) -------- (None) > --- PROPULSION (2) --- (None) > --- UTILITY (2) ------ Heat Sink High-capacity Storage Unit > --- WEAPON (2) ------- Beam Cannon > --- INVENTORY (20) --- Light Treads Light Treads Aluminum Leg Aluminum Leg Aluminum Leg Visual Processing Unit Signal Interpreter Signal Interpreter Peak State ------------ > --- POWER ------------ Light Nuclear Core > --- PROPULSION ------- Aluminum Leg Aluminum Leg > --- UTILITY ---------- Small Storage Unit Improved Terrain Scanner > --- WEAPON ----------- Medium Laser Assault Rifle > --- INVENTORY -------- Ion Engine Light Treads Light Treads Medium Laser [Rating: 11] Favorites ----------- Power Light Nuclear Core Engine Ion Engine Power Core Light Nuclear Core Propulsion Aluminum Leg Leg Aluminum Leg Utility High-capacity Storage Unit Device Seismic Detector Storage High-capacity Storage Unit Weapon Medium Laser Energy Gun Medium Laser Energy Cannon Beam Cannon Ballistic Gun Assault Rifle Build | -11 -10 -10 -10 ------- Run | Yrd Mat Min Sub Slots Evolved . | . . . . Power . | . . . . Propulsion . | . . . . Utility . | . . . . Weapon . | . . . . Parts Attached 24 | 8 9 7 . Power 5 | 2 2 1 . Engine 3 | 2 1 . . Core 2 | . 1 1 . Reactor . | . . . . Propulsion 6 | 2 1 3 . Treads . | . . . . Leg 6 | 2 1 3 . Wheel . | . . . . Hover . | . . . . Flight . | . . . . Utility 7 | 2 4 1 . Device 3 | 1 1 1 . Storage 4 | 1 3 . . Processor . | . . . . Hackware . | . . . . Protection . | . . . . Artifact . | . . . . Weapon 6 | 2 2 2 . Energy Gun 3 | 1 2 . . Energy Cannon 1 | . . 1 . Ballistic Gun 2 | 1 . 1 . Ballistic Cannon . | . . . . Launcher . | . . . . Special Weapon . | . . . . Impact Weapon . | . . . . Slashing Weapon . | . . . . Piercing Weapon . | . . . . Special Melee Weapon . | . . . . Unidentified Prototypes . | . . . . Parts Lost 8 | . 3 3 2 Power 2 | . 1 1 . Propulsion 2 | . . . 2 Utility 1 | . 1 . . Weapon 3 | . 1 2 . Highest Loss Streak 2 | . 1 2 2 To Critical Strikes . | . . . . Average Slot Usage (%) 88 | . 94 87 71 Engine 2 | . 1 4 . Core 8 | . 10 7 . Leg 28 | . 28 28 28 Device 13 | . 12 14 14 Storage 14 | . 14 14 14 Energy Gun 9 | . 19 4 . Energy Cannon 6 | . . 9 14 Ballistic Gun 4 | . 7 3 . Peak Build Rating 11 | 9 11 8 5 Average Rating 7 | 6 8 7 4 On Entrance 5 | . 9 7 5 Naked Turns . | . . . . Heaviest Build 90 | 15 90 50 44 Greatest Support 20 | 20 20 20 20 Greatest Overweight (x) 4 | . 4 2 2 Average Overweight (x) 1 | . 1 2 2 Largest Inventory Capacity 25 | 8 25 20 20 Average Capacity 18 | 7 19 20 20 Most Carried 11 | 4 11 10 8 Average Carried 7 | 3 8 7 8 Final Capacity 20 | 8 20 20 20 Final Carried 10 | 4 10 8 8 Class Distribution -------------------- 76% | Mutant 23% | Scavenger-Mutant Dominant Class ---------------- Mutant | -10/Materials Mutant | -10/Mines Mutant | -10/Subcaves Resources | -11 -10 -10 -10 ----------- Run | Yrd Mat Min Sub Matter Collected 575 | 361 133 76 5 Remotely . | . . . . Salvage Created 697 | 224 300 120 53 Parts 53 | 15 19 12 7 Haulers Intercepted . | . . . . Recyclers Shooed 3 | 1 1 1 . Parts Field Recycled . | . . . . Retrieved Matter . | . . . . Parts Self-Destructed 1 | . . . 1 Prevented . | . . . . Kills | -11 -10 -10 -10 ------- Run | Yrd Mat Min Sub Combat Hostiles Destroyed 13 | . 8 5 . Guns 8 | . 8 . . Cannons 4 | . . 4 . AOE 1 | . . 1 . Classes Destroyed 6 | 3 3 . . Worker 2 | 2 . . . Tunneler 6 | 5 . 1 . Recycler 1 | 1 . . . Watcher 2 | . 2 . . Swarmer 6 | . 3 3 . Grunt 7 | . 5 2 . Best Kill Streak 4 | 2 4 4 . Combat Bots Only 3 | . 2 3 . Max Kills in Single Turn 2 | 1 1 2 . Gunslinging . | . . . . Exploded 1 | . . 1 . Melee . | . . . . Uniques/NPCs Destroyed . | . . . . Combat | -11 -10 -10 -10 -------- Run | Yrd Mat Min Sub Hostile Shots Fired 139 | . 85 42 12 Missed 45 | . 29 15 1 Damage Taken 1162 | . 592 342 228 Core 261 | . 130 66 65 Absorbed by Shields . | . . . . Core Remaining (%) 100 | 100 . . . Volleys Fired 97 | 27 36 18 16 Largest 2 | 2 2 2 1 Hottest 100 | 70 100 70 60 Shots Fired 158 | 54 68 20 16 Gun 124 | 54 68 2 . Cannon 34 | . . 18 16 Launcher . | . . . . Special . | . . . . Kinetic 50 | 27 22 1 . Thermal 108 | 27 46 19 16 Explosive . | . . . . Electromagnetic . | . . . . Robot Hit Streak 14 | 6 8 4 14 Robot Miss Streak 4 | 3 4 2 1 Penetration Max . | . . . . Secondary Targets . | . . . . Shots Hit Robots 91 | 25 40 11 15 Core Hits 32 | 9 15 6 2 Critical Kills . | . . . . Critical Parts Destroyed . | . . . . Critical Strikes 3 | . 3 . . Burn 3 | . 3 . . Melee Attacks . | . . . . Impact . | . . . . Slashing . | . . . . Piercing . | . . . . Sneak Attacks . | . . . . Combat Hostiles . | . . . . Follow-up Attacks . | . . . . Damage Inflicted 1471 | 303 533 425 210 Guns 826 | 303 523 . . Cannons 419 | . . 209 210 Explosions 211 | . . 211 . Melee . | . . . . Ramming 15 | . 10 5 . Kinetic 373 | 141 232 . . Thermal 1083 | 162 291 420 210 Explosive . | . . . . Electromagnetic . | . . . . Impact . | . . . . Slashing . | . . . . Piercing . | . . . . Highest Corruption 1 | . 1 1 1 Average Corruption 1 | . 1 1 1 Corruption Purged . | . . . . Corruption Blocked . | . . . . Effects 13 | . 2 10 1 Message Errors 4 | . . 4 . Matter Fused 3 | . . 3 . Heat Flow Errors 3 | . 1 2 . Data Loss (minor) 1 | . 1 . . Misfires 1 | . . 1 . Alerts 1 | . . . 1 Overload Shots . | . . . . Overflow Damage 117 | . . 117 . Projectiles . | . . . . Explosions 117 | . . 117 . Melee . | . . . . Knockbacks . | . . . . Impact . | . . . . Kinetic . | . . . . Secondary . | . . . . Self-Inflicted Damage 56 | . . 56 . Shots 1 | . . 1 . Rammed . | . . . . Targets Rammed 5 | . 3 2 . Kicked 5 | . 3 2 . Crushed . | . . . . Highest Temperature 243 | 108 243 138 . Average Temperature 60 | 33 80 51 . Received Heat Transfer 234 | . 111 111 12 Effects 2 | . 2 . . Interference 2 | . 2 . . Siege Activations . | . . . . Robots Corrupted . | . . . . Combat Hostiles . | . . . . Parts Fried . | . . . . Impact Corruptions . | . . . . Robots Melted . | . . . . Combat Hostiles . | . . . . Parts Melted 2 | 1 1 . . Heat Transferred 2742 | 481 1073 744 444 Parts Sabotaged . | . . . . Parts Stolen . | . . . . Parts Stripped . | . . . . Power Chain Reactions . | . . . . Alert | -11 -10 -10 -10 ------- Run | Yrd Mat Min Sub Peak Influence 233 | 40 233 172 . Initial 26 | . 26 . . Average 53 | 19 98 24 . Maximum Alert Level 1 | . 1 . . Low Security (%) 91 | 100 78 100 . Level 1 8 | . 21 . . Level 2 . | . . . . Level 3 . | . . . . Level 4 . | . . . . Level 5 . | . . . . High Security . | . . . . Max Security . | . . . . Squads Dispatched 2 | . 2 . . Investigation 1 | . 1 . . Extermination . | . . . . Reinforcement 1 | . 1 . . Assault . | . . . . Garrison . | . . . . Intercept . | . . . . Searches Triggered . | . . . . Construction Impeded . | . . . . Haulers Reinforced . | . . . . Active Scanning Responses . | . . . . Cargo Convoy Interrupts . | . . . . Stealth | -11 -10 -10 -10 --------- Run | Yrd Mat Min Sub Distress Signals 2 | . 2 . . Communications Jammed . | . . . . Distress Signals . | . . . . Times Spotted 32 | . 18 6 8 Peak Tracking Total 6 | . 5 3 6 Tactical Retreats 2 | . 1 1 . Traps | -11 -10 -10 -10 ------- Run | Yrd Mat Min Sub Traps Triggered 2 | . 2 . . Indirectly . | . . . . Trap Hack Attempts . | . . . . Triggered . | . . . . Disarmed . | . . . . Reprogrammed . | . . . . Reused . | . . . . Traps Extracted . | . . . . Installed . | . . . . Triggered . | . . . . Machines | -11 -10 -10 -10 ---------- Run | Yrd Mat Min Sub Machines Disabled 4 | . . 4 . Max in Single Turn 4 | . . 4 . Machines Repaired . | . . . . Machines Dismantled . | . . . . Machines Sabotaged . | . . . . Overloaded Fab Kills . | . . . . Hacking | -11 -10 -10 -10 --------- Run | Yrd Mat Min Sub Machines Accessed 4 | . 4 . . Terminals 4 | . 4 . . Fabricators . | . . . . Repair Stations . | . . . . Recycling Units . | . . . . Scanalyzers . | . . . . Garrison Access . | . . . . Total Hacks 13 | . 13 . . Successful 9 | . 9 . . Failed 4 | . 4 . . Catastrophic . | . . . . Database Lockouts . | . . . . Manual . | . . . . Terminals 13 | . 13 . . Fabricators . | . . . . Repair Stations . | . . . . Recycling Units . | . . . . Scanalyzers . | . . . . Garrison Access . | . . . . Terminal Hacks 9 | . 9 . . Record 3 | . 3 . . Branch Access Points 1 | . 1 . . Emergency Access Points 1 | . 1 . . Terminal Index 1 | . 1 . . Locate Traps 1 | . 1 . . Zone Layout 2 | . 2 . . Fabricator Hacks . | . . . . Repair Station Hacks . | . . . . Recycling Unit Hacks . | . . . . Scanalyzer . | . . . . Garrison Access Hacks . | . . . . Unauthorized Hacks . | . . . . Terminals . | . . . . Fabricators . | . . . . Repair Stations . | . . . . Recycling Units . | . . . . Scanalyzers . | . . . . Garrison Access . | . . . . Data Cores Recovered . | . . . . Used . | . . . . Hacking Detections 2 | . 2 . . Full Trace Events 1 | . 1 . . Feedback Events . | . . . . Feedback Blocked . | . . . . Robot Schematics Acquired . | . . . . Robots Built . | . . . . Authchips . | . . . . Time . | . . . . Total Robot Build Rating . | . . . . Part Schematics Acquired . | . . . . Parts Built . | . . . . Authchips . | . . . . Time . | . . . . Total Part Build Rating . | . . . . Parts Repaired . | . . . . Time . | . . . . Parts Recycled . | . . . . Recycled Matter . | . . . . Retrieved Matter . | . . . . Retrieved Components . | . . . . Parts Scanalyzed . | . . . . Part Schematics Acquired . | . . . . Parts Damaged . | . . . . Bothacking | -11 -10 -10 -10 ------------ Run | Yrd Mat Min Sub Used RIF Installer . | . . . . Robots Hacked . | . . . . Non-combat . | . . . . Combat . | . . . . Robot Hacks Applied . | . . . . Relay Couplers Released . | . . . . Fabnet Peak Effective % . | . . . . Robots Rewired . | . . . . Allies Hacked . | . . . . Hacks Repelled . | . . . . Allies | -11 -10 -10 -10 -------- Run | Yrd Mat Min Sub Total Allies . | . . . . Largest Group . | . . . . Highest-Rated Group . | . . . . Highest-Rated Ally . | . . . . Total Orders . | . . . . Ally Attacks . | . . . . Total Damage . | . . . . Kills . | . . . . Allies Corrupted . | . . . . Allies Melted . | . . . . Intel | -11 -10 -10 -10 ------- Run | Yrd Mat Min Sub Robot Analysis Total . | . . . . Derelict Logs Recovered 1 | . . 1 . Drone Launches . | . . . . Drone Recoveries . | . . . . Exploration | -11 -10 -10 -10 ------------- Run | Yrd Mat Min Sub Turns Passed 2494 | 221 916 1165 192 Spaces Moved 908 | 107 312 428 61 Core 6 | 6 . . . Treads . | . . . . Legs 902 | 101 312 428 61 Wheels . | . . . . Hover . | . . . . Flight . | . . . . Fastest Speed 50 | 50 120 260 260 Average Speed 237 | 116 243 260 260 Slowest Speed 400 | 120 400 260 260 Overloaded Moves . | . . . . Propulsion Burnouts . | . . . . Robots Hopped . | . . . . Cave-ins Triggered . | . . . . Exploration Rate (%) 40 | 5 60 90 5 Regions Visited 3 Branch Regions 2 Pre-discovered Areas 2 | . . 1 1 Known Exits Taken 1 | . 1 . . Unknown Exits Taken 2 | 1 . 1 . Scrap Searched . | . . . . Spaces Dug . | . . . . Terrain Destroyed 38 | . . 38 . Melee . | . . . . Projectile . | . . . . AOE 38 | . . 38 . Terrain Rammed . | . . . . Walls Destroyed . | . . . . Machines Disabled . | . . . . Actions | -11 -10 -10 -10 --------- Run | Yrd Mat Min Sub Total 1078 | 146 395 458 79 Wait 31 | 2 25 2 2 Move 905 | 106 311 427 61 Hop . | . . . . Pick Up 10 | 3 7 . . Fast Attach 8 | 7 1 . . Attach 4 | . 2 2 . Detach 1 | . 1 . . Swap 12 | 1 6 5 . Drop 5 | . 3 2 . Fire 97 | 27 36 18 16 Melee . | . . . . Ram . | . . . . Kick 5 | . 3 2 . Crush . | . . . . Escape Stasis . | . . . . Rewire . | . . . . Trap . | . . . . Miscellaneous . | . . . . Route ------- -11/Scrapyard -10/Materials (discovered 2 exits: [*Mat] / *Min) -10/Mines (discovered 3 exits: [*Mat x2] / [*Sub]) -10/Subcaves History --------- Turn | Location | Event 5 | -11/Scrapyard | Discovered new exit (range 15) 222 | -11/Scrapyard | Entered Materials 320 | -10/Materials | Build established: Mutant 471 | -10/Materials | Discovered new exit (range 3) 893 | -10/Materials | Discovered new exit (range 16) 895 | -10/Materials | Identified exit to Mines 1058 | -10/Materials | Core integrity fell below 50% 1138 | -10/Materials | Entered Mines 1139 | -10/Mines | Learned location of Storage (-7) 1310 | -10/Mines | Received a Rocket Launcher from a helpful Derelict 1316 | -10/Mines | Discovered new exit (range 10) 1451 | -10/Mines | Found a hidden stash of uninstalled traps 1864 | -10/Mines | Discovered new exit (range 10) 1866 | -10/Mines | Build established: Scavenger-Mutant 2124 | -10/Mines | Discovered new exit (range 14) 2303 | -10/Mines | Entered Subcaves 2379 | -10/Subcaves | Learned location of Zion (-6) 2379 | -10/Subcaves | Met a Zionite searching for "candidates" 2436 | -10/Subcaves | Build established: Mutant 2483 | -10/Subcaves | Ambushed by swarm of Subdwellers 2488 | -10/Subcaves | Core integrity fell below 20% 2495 | -10/Subcaves | Destroyed by OJ-4VB(R) with Subdweller Machine Gun Last Messages --------------- A mess of Twisted Machinery falls from the cavern ceiling. VD-MQO(R) comes tumbling into view. U4-PFL(h): "The Subs are coming!" OJ-4VB(R) emerges from the Twisted Machinery. HV Slug penetrates Twisted Machinery. HV Slug penetrates Wall. 8U-6KI(R) emerges from the Twisted Machinery. R6-J8H(R) emerges from the Twisted Machinery. HV Slug penetrates VD-MQO(R). VD-MQO(R) suffers critical hit (Destroy). VD-MQO(R) destroyed. HV Slug penetrates Wall. M2-2UK(R) emerges from the Twisted Machinery. 0C-RXX(R) emerges from the Twisted Machinery. Aluminum Leg destroyed. SE-7LB(R) emerges from the Twisted Machinery. HV Slug penetrates Twisted Machinery. M2-2UK(R) suffers critical hit (Destroy). M2-2UK(R) destroyed. Map ----- +----------------------------------------------------+ | ?????????????????????????????????????????????????? | | ?????????????????????????????????????????????????? | | ?????????????????????????????????????????????????? | | ?????????????????????????????????????????????????? | | ?????????????????????????????????????????????????? | | ??????????????? ???????????????????????????????? | | ???####???????? ???????????????????????????????? | | ??? #???????? #???????????????????????????????? | | ??# ????????? ???????????????????????????????? | | ##" #????????? #???????????????????????????????? | | "" #????????? #?????#?????????????????????????? | | ""?????????? #???? #? ???????????????????????? | | #?????###### ##?? ## ???????????????????????? | | !"######## ## ????????????????????????? | | %& # ""## #?????????????????????????? | | [ "" #??????????????????????????? | | "" #?##??????????????????????????? | | ## ## #?? ??????????????????????????? | | ### " ##???#"##????????????????????????? | | #?# "" ######R"##??##???????????????????? | | ### ## #" &!%R### ????????????????????? | | ## ###### #R&R ;#????????????????????? | | ## ????## RR% #????????????????????? | | ## #????## ## # < & & #????????????????????? | | # ##?????####### <[!%& #????????????????????? | | ## #????????????# h<@R##????????????????????? | | ## #????????????# !##?????????????????????? | | #????????????## #####??????????????????????? | | ## #?????????????###??????????????????????????? | | ### #?????????????????????????????????????????? | | ??? ???????????????????????????????????????????? | | ???% ???????????????????????????????????????????? | | ???? ????????????????????????????????????????????? | | ?????????????????????????????????????????????????? | | ?????????????????????????????????????????????????? | | ?????????????????????????????????????????????????? | | ?????????????????????????????????????????????????? | | ?????????????????????????????????????????????????? | | ?????????????????????????????????????????????????? | | ?????????????????????????????????????????????????? | | ?????????????????????????????????????????????????? | | ?????????????????????????????????????????????????? | | ?????????????????????????????????????????????????? | | ?????????????????????????????????????????????????? | | ?????????????????????????????????????????????????? | | ?????????????????????????????????????????????????? | | ?????????????????????????????????????????????????? | | ?????????????????????????????????????????????????? | | ?????????????????????????????????????????????????? | | ?????????????????????????????????????????????????? | +----------------------------------------------------+ Best States ------------- Heat Dissipation 35 Energy Generation 14 Energy Capacity 250 Matter Stores 300 Matter Capacity 300 Sight Range 16 Terrain Scan Range 16 Terrain Scan Density 10 Evasion (%) 55 Item Schematics ----------------- None Robot Schematics ------------------ None Fabricated ------------ Nothing Alien Tech Used ----------------- None Achievements -------------- None Challenges ------------ None Game ------ Seed TargetingFusionChainsaw Manual? 0 Play Time 00:16:49 Cumulative 4.2 hours Start 2024.11.14 @ 14:41:49 End 2024.11.14 @ 14:57:27 Sessions 1 Manual Loads 0 Difficulty Rogue Special Mode None Game No. 10 Rogue 10 Adventurer 0 Explorer 0 Win Type - Total 0 Types 0/0/0/0/0/0/0/0/0 Lore% 2 Gallery% 8 Achievement% 8 Wizard Run 0 Options --------- Layout 1 ASCII 0 Keyboard 0 Movement Numpad Keybinds 0 Fullscreen 0 Font 42/SmallcapsGlow Map View 50x35 Zoom Use 0% Tactical HUD 0 Map Filters NONE Filters NONE Steam 1 RUN: f8d0ccfe-56b6-4ec5-9484-52a3cbcfe725